[Event "European Women Rapid-ch 2023"]
[Site "Monaco"]
[Date "2024.01.13"]
[Round "5.21"]
[White "Dornbusch, Tatiana"]
[Black "Rudzinska, Michalina"]
[Result "0-1"]
[ECO "E01"]
[WhiteElo "2218"]
[BlackElo "2241"]
[Annotator "RC"]
[PlyCount "108"]
[EventDate "2023.12.19"]
[EventType "swiss"]
[EventCountry "MNC"]
[SourceTitle "playchess.com"]
[Source "ChessBase"]
[SourceQuality "1"]
[TimeControl "900+10"]

1. d4 {[%emt 0:00:02]} Nf6 {[%emt 0:00:02]} 2. Nf3 {[%emt 0:00:01]} e6 {[%emt 0:00:04]} 3. g3 {[%emt 0:00:02]} c5 {[%emt 0:00:05]} 4. Bg2 {[%emt 0:00:11]} cxd4 {[%emt 0:00:03]} 5. Nxd4 {[%emt 0:00:02]} d5 {[%emt 0:00:02]} 6. c4 {[%emt 0:00:35]} e5 {[%emt 0:00:04]} 7. Nc2 {[%emt 0:00:36]} d4 {[%emt 0:00:07]} 8. O-O {[%emt 0:00:17]} Nc6 {[%emt 0:00:03]} 9. e3 {[%emt 0:03:06]} d3 {[%emt 0:03:41]} 10. Ne1 {[%emt 0:00:04]} e4 {[%emt 0:00:02]} 11. f3 {[%emt 0:00:08]} exf3 {[%emt 0:00:13]} 12. Nxf3 {[%emt 0:00:40]} Bc5 {[%emt 0:00:26]} 13. a3 {[%emt 0:01:38]} a5 {[%emt 0:00:06]} 14. Nc3 {[%emt 0:00:07]} O-O {[%emt 0:00:05]} 15. Nd5 {[%emt 0:02:54]} Nxd5 {[%emt 0:00:41]} 16. cxd5 {[%emt 0:00:02]} Qxd5 {[%emt 0:00:12]} 17. Ne1 {[%emt 0:01:30]} Qe5 {[%emt 0:01:44]} 18. Qxd3 {[%emt 0:00:54]} Rd8 {[%emt 0:00:07]} 19. Qe4 {[%emt 0:00:39]} Qxe4 {[%emt 0:00:14]} 20. Bxe4 {[%emt 0:00:02]} Re8 {[%emt 0:01:32]} 21. Bd5 {[%emt 0:00:16]} Be6 {[%emt 0:00:02]} 22. Bxe6 {[%emt 0:00:58]} Rxe6 {[%emt 0:00:01]} 23. Nc2 {[%emt 0:00:33]} Rd8 {[%emt 0:01:30]} 24. b4 {[%emt 0:02:35]} axb4 {[%emt 0:00:46]} 25. axb4 {[%emt 0:00:01]} Nxb4 {[%emt 0:00:38]} 26. Nxb4 {[%emt 0:00:02]} Bxb4 {[%emt 0:00:01]} 27. Ba3 {[%emt 0:00:41]} Bd2 {[%emt 0:00:23]} 28. Bc5 {[%emt 0:00:40]} Bxe3+ {[%emt 0:00:05]} 29. Bxe3 {[%emt 0:00:01]} Rxe3 {[%emt 0:00:01]} 30. Rab1 {[%emt 0:00:07]} Re7 {[%emt 0:00:05]} 31. Rb6 {[%emt 0:00:02]} f6 {[%emt 0:00:21]} 32. Rfb1 {[%emt 0:00:01]} Rdd7 {[%emt 0:00:20]} 33. R1b2 {[%emt 0:00:02]} Kf8 {[%emt 0:00:07]} 34. Kg2 {[%emt 0:00:01]} Ke8 {[%emt 0:00:06]} 35. Kf2 {[%emt 0:00:05]} Kd8 {[%emt 0:00:03]} 36. Kf3 {[%emt 0:00:02]} Kc8 {[%emt 0:00:11]} 37. Rc2+ {[%emt 0:00:05]} Rc7 {[%emt 0:00:10]} 38. Rcb2 {[%emt 0:00:04]} Rc6 {[%emt 0:00:09]} 39. R6b3 {[%emt 0:00:08]} Rec7 {[%emt 0:00:20]} 40. Kg4 {[%emt 0:00:12]} Rc4+ {[%emt 0:00:42]} 41. Kh3 {[%emt 0:00:03]} h5 {[%emt 0:01:51]} 42. Rb5 {[%emt 0:00:03]} g5 {[%emt 0:00:15]} 43. Rf2 {[%emt 0:00:37]} R4c5 {[%emt 0:02:38]} 44. Rxc5 {[%emt 0:00:18]} Rxc5 {[%emt 0:00:01]} 45. Rxf6 {[%emt 0:00:01]} Rc2 {[%emt 0:00:56]} 46. g4 {[%emt 0:00:01]} Rc3+ {[%emt 0:00:18]} 47. Kg2 {[%emt 0:00:02]} hxg4 {[%emt 0:00:03]} 48. Rg6 {[%emt 0:00:24]} Rc5 {[%emt 0:00:55]} 49. Kg3 {[%emt 0:00:01]} b5 {[%emt 0:00:01]} 50. Kxg4 {[%emt 0:00:05]} Kc7 {[%emt 0:00:08]} 51. Rg7+ {[%emt 0:01:22]} Kb6 {[%emt 0:00:07]} 52. Rg6+ {[%emt 0:00:30]} Ka5 {[%emt 0:00:02]} 53. Rg8 {[%emt 0:00:12]} b4 {[%emt 0:00:05]} 54. Rb8 {[%emt 0:00:09]} Ka4 {[%emt 0:00:03]} 0-1

[Event "European Women Rapid-ch 2023"]
[Site "Monaco"]
[Date "2024.01.13"]
[Round "5.22"]
[White "Radeva, Viktoria"]
[Black "Schippke, Manon"]
[Result "0-1"]
[ECO "B23"]
[WhiteElo "2325"]
[BlackElo "2162"]
[Annotator "TA"]
[PlyCount "86"]
[EventDate "2023.12.19"]
[EventType "swiss"]
[EventCountry "MNC"]
[SourceTitle "playchess.com"]
[Source "ChessBase"]
[SourceQuality "1"]
[TimeControl "900+10"]

{[%evp 20,86,-34,-25,-32,-27,-19,-33,-29,-49,-41,-51,-43,-78,-80,-85,26,0,0,-54,-6,-17,0,-16,0,0,17,0,0,-100,-101,-112,0,0,0,0,179,177,352,358,608,-28,-18,-29,54,-75,66,-100,0,-289,-287,-260,-141,-139,-18,-21,0,0,0,-29988,-29989,-29988,-29989,-29995,-29996,-29996,-669,-29997,-29998]} 1. e4 {[%emt 0:00:02]} c5 {[%emt 0:00:01]} 2. Nc3 {[%emt 0:00:01]} e6 {[%emt 0:00:02]} 3. d4 {[%emt 0:00:04]} cxd4 {[%emt 0:00:01]} 4. Qxd4 {[%emt 0:00:02]} Nc6 {[%emt 0:00:02]} 5. Qe3 {[%emt 0:00:18]} Nf6 {[%emt 0:00:10]} 6. Be2 {[%emt 0:00:14] B23: Closed Sicilian: Lines without g3.} d6 {[%emt 0:00:03]} 7. Nf3 {[%emt 0:00:13]} Be7 {[%emt 0:00:02]} 8. O-O {[%emt 0:00:02]} O-O {[%emt 0:00:14]} 9. b3 {[%emt 0:00:04]} a6 {[%emt 0:00:50]} 10. Rd1 {[%emt 0:00:21]} Qc7 {[%emt 0:00:39]} 11. Bb2 {[%emt 0:01:02]} b5 {[%emt 0:00:07]} 12. h3 $146 {[%emt 0:00:21]} ({Predecessor:} 12. a3 Bb7 13. Rd2 Rac8 14. h3 Rfd8 15. Rad1 h6 16. Bf1 b4 17. Na4 bxa3 18. Bxa3 Nxe4 19. Qxe4 {1-0 Begmuratov,K (2148)-Morgunov,M (2386) Online Olym Div2 B rapid 2021 (1.5)}) 12... Bb7 {[%emt 0:00:03]} 13. Bd3 {[%emt 0:00:59]} Rac8 {[%emt 0:00:33]} 14. a3 {[%emt 0:00:22]} Nd7 {[%emt 0:01:13]} 15. Ne2 {[%emt 0:00:55]} Nc5 {[%emt 0:01:33]} 16. Qf4 {[%emt 0:01:21]} e5 {[%emt 0:00:15]} 17. Qe3 {[%emt 0:00:43]} Ne6 {[%emt 0:01:12]} (17... f5 $17 {Hoping for ...fxe4.} 18. exf5 e4 19. Bxe4 Nxe4 20. Qxe4 Ne5) 18. Ng3 {[%emt 0:02:06]} g6 {[%emt 0:00:08]} 19. a4 {[%emt 0:03:08]} (19. c4 $11) 19... b4 {[%emt 0:00:48]} (19... Nb4 $15) 20. h4 {[%emt 0:00:14]} Nf4 {[%emt 0:00:08]} 21. h5 {[%emt 0:00:22]} Nd8 {[%emt 0:02:08]} (21... Nxh5 $6 22. Nxh5 gxh5 23. c3 $16 (23. Qh6 Kh8 $14)) 22. Bc4 {[%emt 0:00:22]} Nde6 {[%emt 0:00:01]} (22... Nxh5 $2 23. Nxh5 Ne6 24. Ng3 $18) 23. hxg6 {[%emt 0:00:47]} hxg6 {[%emt 0:00:02]} (23... fxg6 24. c3 $16) 24. Ne2 {[%emt 0:00:07]} (24. c3 $11 {remains equal.}) 24... Nxe2+ $1 $17 {[%emt 0:01:03]} 25. Qxe2 {[%emt 0:00:08]} Nf4 {[%emt 0:00:03]} (25... Nc5 $17 26. Bd5 Kg7) 26. Qe3 $11 {[%emt 0:00:10]} Qc6 {[%emt 0:00:16]} 27. Re1 {[%emt 0:01:03]} a5 $2 {[%emt 0:02:39] [#]} (27... Qd7 $11 {and Black has nothing to worry.}) 28. g3 $1 $18 {[%emt 0:00:11]} Ne6 $2 {[%emt 0:00:48]} (28... Qd7) 29. Qh6 $18 {[%emt 0:00:44]} Qd7 $2 {[%emt 0:00:41]} (29... Bf6 30. Bxe6 Bg7 31. Qxg6 fxe6) 30. Kg2 $2 {[%emt 0:00:11]} (30. Nxe5 $18 Bg5 (30... dxe5 31. Bxe5 f6 32. Qxg6+ Kh8 33. Kg2 Bxe4+ 34. Rxe4) 31. Qxg5 (31. Nxd7 Bxh6 32. Nxf8 Kxf8 $16) 31... Nxg5 32. Nxd7) 30... Bf6 $1 $11 {[%emt 0:00:40]} (30... Rxc4 $2 31. Rh1 $18 (31. bxc4 Bf6 $17) (31. bxc4 Bf6 $15)) 31. Rad1 {[%emt 0:01:41]} Bg7 {[%emt 0:00:33]} (31... Rc5 $11) 32. Qh4 {[%emt 0:00:17]} (32. Nxe5 $1 $14 Qc7 33. Ng4 Bxh6 34. Nxh6+ Kh7 35. Rh1) 32... Qd8 {[%emt 0:01:38]} (32... Rxc4 $1 $17 33. bxc4 f6 (33... Qxa4 $2 34. Rxd6 Qxc2 35. Bxe5 $18)) 33. Qh3 $2 {[%emt 0:00:02]} (33. Bxe6 $14 {keeps the upper hand.} Qxh4 34. gxh4 (34. Nxh4 fxe6 35. Nxg6 Rf7 $14) 34... fxe6 35. Rxd6 Rxc2 36. Bxe5 Bxe5 (36... Rxf3 $2 37. Kxf3 Bxe5 38. Rd8+ Kg7 39. Rd7+ Kh6 40. Rxb7 $18) 37. Nxe5) 33... Qe7 {[%emt 0:00:15]} ({Black should try} 33... Rxc4 $1 $17 34. bxc4 Qe7) 34. Nh4 $2 {[%emt 0:00:47][%mdl 8192]} (34. Bxe6 $1 $11 {and White stays safe.} fxe6 35. Rd2) 34... Rxc4 $1 $19 {[%emt 0:00:58]} 35. bxc4 {[%emt 0:00:02]} Ng5 {[%emt 0:00:01]} (35... Rc8 $19 {[%cal Oe6g5] And now ...Ng5! would win.} 36. Qg4 Rxc4) 36. Qg4 $17 {[%emt 0:00:08] [#]} f5 {[%emt 0:00:01]} (36... Rc8 $1 $17 {[%cal Rc8c4]} 37. Nf3 (37. Bc1 $2 Nxe4 38. Rxe4 Rxc4 $19) 37... Nxe4 38. Rxe4 f5 39. Qxg6 (39. Qh4 $2 Bf6 $19) 39... Bxe4 (39... fxe4 40. Ng5 $11) 40. Rxd6 Rxc4 41. Bxe5 Bxf3+ 42. Kh3 (42. Kxf3 $2 Qb7+ $19) 42... Rg4 (42... Qxe5 43. Rd8+) (42... Bg4+ 43. Kh2 $11) 43. Qxf5 Rg5 (43... Qxe5 44. Rd8+) (43... Bxe5 44. Qc8+ Kf7 45. Qf5+ Kg8 46. Qc8+ Kf7 47. Qf5+ Kg8 $11) 44. Qxf3 Rxe5 (44... Bxe5 $2 45. Qd5+ Kg7 46. Rd7 $18) (44... Qxe5 $2 45. Rd8+ Kh7 46. Kg2 $19)) 37. Nxg6 $11 {[%emt 0:00:16]} Qf6 {[%emt 0:00:00]} 38. Qh5 {[%emt 0:00:02]} fxe4 $1 {[%emt 0:00:01]} (38... Bxe4+ $2 {perishes.} 39. Rxe4 fxe4 40. Nxf8 Kxf8 41. Bc1 $18) 39. Nxf8 $2 {[%emt 0:01:01][%mdl 8192]} (39. Re3 $11 Qxf2+ 40. Kh1) 39... e3+ {[%emt 0:00:04]} 40. f3 {[%emt 0:00:10]} Bxf3+ {[%emt 0:00:03]} (40... Bxf8 $2 {too greedy.} 41. Rxe3 Qf5 42. Rd2 $18) 41. Qxf3 {[%emt 0:00:32]} Qxf3+ {[%emt 0:00:01]} 42. Kh2 {[%emt 0:00:02]} Qf2+ {[%emt 0:00:01]} 43. Kh1 {[%emt 0:00:05]} Nf3 {[%emt 0:00:02]} 0-1

[Event "European Women Rapid-ch 2023"]
[Site "Monaco"]
[Date "2024.01.13"]
[Round "5.23"]
[White "Movsesian, Julia"]
[Black "Monpeurt, Cyrielle"]
[Result "1-0"]
[ECO "B33"]
[WhiteElo "2257"]
[BlackElo "2187"]
[Annotator "ChessBase"]
[PlyCount "81"]
[EventDate "2023.12.19"]
[EventType "swiss"]
[EventCountry "MNC"]
[SourceTitle "playchess.com"]
[Source "ChessBase"]
[SourceQuality "1"]
[TimeControl "900+10"]

1. e4 {[%emt 0:00:01]} c5 {[%emt 0:00:00]} 2. Nf3 {[%emt 0:00:01]} Nc6 {[%emt 0:00:01]} 3. Nc3 {[%emt 0:00:02]} Nf6 {[%emt 0:00:02]} 4. d4 {[%emt 0:00:01]} cxd4 {[%emt 0:00:02]} 5. Nxd4 {[%emt 0:00:01]} e5 {[%emt 0:00:03]} 6. Ndb5 {[%emt 0:00:01]} d6 {[%emt 0:00:02]} 7. Bg5 {[%emt 0:00:02]} a6 {[%emt 0:00:01]} 8. Na3 {[%emt 0:00:01]} b5 {[%emt 0:00:02]} 9. Nd5 {[%emt 0:00:04]} Be7 {[%emt 0:00:03]} 10. Bxf6 {[%emt 0:00:02]} Bxf6 {[%emt 0:00:02]} 11. c4 {[%emt 0:00:00]} b4 {[%emt 0:00:01]} 12. Nc2 {[%emt 0:00:01]} O-O {[%emt 0:00:11]} 13. Be2 {[%emt 0:00:01]} Bg5 {[%emt 0:00:04]} 14. O-O {[%emt 0:00:03]} Qa5 {[%emt 0:00:52]} 15. Qd3 {[%emt 0:00:11]} Qc5 {[%emt 0:00:40]} 16. b3 {[%emt 0:00:11]} Be6 {[%emt 0:00:15]} 17. Rad1 {[%emt 0:00:22]} a5 {[%emt 0:00:27]} 18. h3 {[%emt 0:01:14]} Rac8 {[%emt 0:01:01]} 19. Nde3 {[%emt 0:00:37]} Rcd8 {[%emt 0:00:23]} 20. Bg4 {[%emt 0:00:50]} g6 {[%emt 0:00:30]} 21. Rd2 {[%emt 0:01:11]} f5 {[%emt 0:01:20]} 22. Bf3 {[%emt 0:01:01]} Ne7 {[%emt 0:01:50]} 23. Rfd1 {[%emt 0:00:17]} fxe4 {[%emt 0:00:44]} 24. Bxe4 {[%emt 0:00:09]} Nf5 {[%emt 0:00:02]} 25. Bd5 {[%emt 0:00:39]} Bxd5 {[%emt 0:04:10]} 26. Qxd5+ {[%emt 0:00:02]} Kg7 {[%emt 0:00:21]} 27. Rd3 {[%emt 0:00:05]} Qc7 {[%emt 0:00:44]} 28. Nxf5+ {[%emt 0:00:34]} Rxf5 {[%emt 0:00:11]} 29. Ne1 {[%emt 0:00:16]} Be7 {[%emt 0:01:27]} 30. Nf3 {[%emt 0:00:32]} Rdf8 {[%emt 0:00:00]} 31. R3d2 {[%emt 0:01:25]} Qb6 {[%emt 0:00:00]} 32. Re2 {[%emt 0:00:07]} R8f7 {[%emt 0:00:16]} 33. Rd3 {[%emt 0:00:35]} Rf4 {[%emt 0:00:11]} 34. c5 {[%emt 0:00:15]} dxc5 {[%emt 0:01:44]} 35. Nxe5 {[%emt 0:00:09]} Rxf2 {[%emt 0:00:25]} 36. Rxf2 {[%emt 0:00:35]} Rxf2 {[%emt 0:00:02]} 37. Kxf2 {[%emt 0:00:45]} c4+ {[%emt 0:00:01]} 38. Kg3 {[%emt 0:00:40]} cxd3 {[%emt 0:00:14]} 39. Qf7+ {[%emt 0:00:01]} Kh6 {[%emt 0:00:30]} 40. Ng4+ {[%emt 0:00:02]} Kh5 {[%emt 0:00:06]} 41. Qxh7+ {[%emt 0:00:06]} 1-0

[Event "European Women Rapid-ch 2023"]
[Site "Monaco"]
[Date "2024.01.13"]
[Round "5.24"]
[White "Iasman, Inna"]
[Black "Hoang, Thanh Trang"]
[Result "0-1"]
[ECO "A90"]
[WhiteElo "1889"]
[BlackElo "2382"]
[Annotator "TA"]
[PlyCount "30"]
[EventDate "2023.12.19"]
[EventType "swiss"]
[EventCountry "MNC"]
[SourceTitle "playchess.com"]
[Source "ChessBase"]
[SourceQuality "1"]
[TimeControl "900+10"]

{[%evp 15,30,14,22,0,0,0,0,-16,12,-10,-14,-115,-110,-113,-110,-425,-427]} 1. d4 {[%emt 0:00:02]} e6 {[%emt 0:00:04]} 2. c4 {[%emt 0:00:08]} f5 {[%emt 0:00:02]} 3. g3 {[%emt 0:00:06]} Nf6 {[%emt 0:00:04]} 4. Bg2 {[%emt 0:00:04]} c6 {[%emt 0:00:06]} 5. Nc3 {[%emt 0:00:19]} d5 {[%emt 0:00:07]} 6. Nf3 {[%emt 0:01:24]} Bd6 {[%emt 0:00:05]} 7. b3 {[%emt 0:00:51]} O-O {[%emt 0:01:06]} 8. O-O {[%emt 0:00:06]} Qe7 {[%emt 0:00:24]} 9. a3 {[%emt 0:00:43]} Nbd7 {[%emt 0:00:43]} 10. Bb2 {[%emt 0:01:03]} b6 {[%emt 0:00:43]} 11. Qc2 {[%emt 0:00:54] The position is equal.} Bb7 {[%emt 0:00:34]} 12. Rfe1 {[%emt 0:02:09]} Rac8 {[%emt 0:02:37]} 13. Ne5 {[%emt 0:01:48]} Nxe5 $17 {[%emt 0:00:51]} 14. dxe5 {[%emt 0:00:06]} Bxe5 {[%emt 0:00:03]} 15. Nxd5 $2 {[%emt 0:00:20][%mdl 8192] [#]} exd5 {[%emt 0:00:14] White got outplayed after the opening.   Weighted Error Value: White=1.05/Black=0.05 (flawless) .  Loses game:     	White=1     	---        Mistake:       	White=1     	---        Inaccurate:     	---       	Black=1      OK:         	---       	Black=4} 0-1

[Event "European Women Rapid-ch 2023"]
[Site "Monaco"]
[Date "2024.01.13"]
[Round "5.25"]
[White "Hejazipour, Mitra"]
[Black "Galvan Cipriani, Viviana"]
[Result "1/2-1/2"]
[ECO "E61"]
[WhiteElo "2356"]
[BlackElo "2104"]
[Annotator "ChessBase"]
[PlyCount "115"]
[EventDate "2023.12.19"]
[EventType "swiss"]
[EventCountry "MNC"]
[SourceTitle "playchess.com"]
[Source "ChessBase"]
[SourceQuality "1"]
[TimeControl "900+10"]

1. Nf3 {[%emt 0:00:01]} Nf6 {[%emt 0:00:09]} 2. c4 {[%emt 0:00:01]} c5 {[%emt 0:00:34]} 3. e3 {[%emt 0:00:06]} Nc6 {[%emt 0:00:07]} 4. b3 {[%emt 0:00:06]} g6 {[%emt 0:00:05]} 5. Bb2 {[%emt 0:00:01]} Bg7 {[%emt 0:00:02]} 6. d4 {[%emt 0:00:12]} cxd4 {[%emt 0:00:05]} 7. exd4 {[%emt 0:00:08]} d5 {[%emt 0:00:03]} 8. Be2 {[%emt 0:00:20]} O-O {[%emt 0:00:03]} 9. O-O {[%emt 0:00:04]} h6 {[%emt 0:01:12]} 10. Nbd2 {[%emt 0:00:26]} Be6 {[%emt 0:00:03]} 11. a3 {[%emt 0:00:50]} Rc8 {[%emt 0:00:07]} 12. c5 {[%emt 0:00:09]} a5 {[%emt 0:00:14]} 13. Bb5 {[%emt 0:00:27]} Na7 {[%emt 0:01:03]} 14. Bd3 {[%emt 0:00:13]} Nc6 {[%emt 0:00:04]} 15. Bc3 {[%emt 0:00:05]} Nh5 {[%emt 0:00:27]} 16. b4 {[%emt 0:01:22]} Bg4 {[%emt 0:00:04]} 17. h3 {[%emt 0:01:13]} Bxh3 {[%emt 0:01:48]} 18. b5 {[%emt 0:00:56]} Nb8 {[%emt 0:00:21]} 19. Ne1 {[%emt 0:01:26]} Bd7 {[%emt 0:00:35]} 20. Qf3 {[%emt 0:00:26]} Nf6 {[%emt 0:01:09]} 21. a4 {[%emt 0:00:06]} Bg4 {[%emt 0:02:54]} 22. Qf4 {[%emt 0:00:38]} b6 {[%emt 0:05:07]} 23. c6 {[%emt 0:00:39]} Qc7 {[%emt 0:01:03]} 24. Qxc7 {[%emt 0:00:57]} Rxc7 {[%emt 0:00:02]} 25. Bb2 {[%emt 0:00:05]} Ne8 {[%emt 0:00:07]} 26. Nef3 {[%emt 0:00:10]} Nd6 {[%emt 0:00:23]} 27. Ne5 {[%emt 0:00:12]} Bf5 {[%emt 0:00:02]} 28. Be2 {[%emt 0:00:51]} h5 {[%emt 0:00:25]} 29. Bf3 {[%emt 0:00:18]} e6 {[%emt 0:00:11]} 30. Rac1 {[%emt 0:00:12]} Bh6 {[%emt 0:00:25]} 31. Rfd1 {[%emt 0:00:13]} f6 {[%emt 0:00:02]} 32. Ba3 {[%emt 0:00:20]} Bxd2 {[%emt 0:01:04]} 33. Rxd2 {[%emt 0:00:15]} Rd8 {[%emt 0:00:06]} 34. Bxd6 {[%emt 0:01:08]} Rxd6 {[%emt 0:00:03]} 35. Nd3 {[%emt 0:00:02]} Bxd3 {[%emt 0:00:16]} 36. Rxd3 {[%emt 0:00:02]} Nd7 {[%emt 0:00:06]} 37. Re1 {[%emt 0:00:16]} Nf8 {[%emt 0:00:03]} 38. Rde3 {[%emt 0:00:07]} f5 {[%emt 0:00:09]} 39. Bd1 {[%emt 0:00:14]} Kg7 {[%emt 0:00:02]} 40. Kh2 {[%emt 0:00:49]} Kf6 {[%emt 0:00:04]} 41. f3 {[%emt 0:00:18]} Rd8 {[%emt 0:00:24]} 42. Re5 {[%emt 0:00:14]} Rh7 {[%emt 0:00:13]} 43. Bb3 {[%emt 0:00:51]} Rc7 {[%emt 0:00:10]} 44. g4 {[%emt 0:00:29]} Rh7 {[%emt 0:00:37]} 45. gxf5 {[%emt 0:00:16]} gxf5 {[%emt 0:00:02]} 46. Rc1 {[%emt 0:00:20]} Rc8 {[%emt 0:00:14]} 47. Rce1 {[%emt 0:00:43]} Rd8 {[%emt 0:00:10]} 48. R5e3 {[%emt 0:00:12]} Rg7 {[%emt 0:00:11]} 49. Bd1 {[%emt 0:00:05]} Rc8 {[%emt 0:00:15]} 50. f4 {[%emt 0:00:07]} Rh7 {[%emt 0:00:05]} 51. Kg3 {[%emt 0:00:30]} Rcc7 {[%emt 0:00:08]} 52. Kf2 {[%emt 0:00:05]} h4 {[%emt 0:00:05]} 53. Kg2 {[%emt 0:00:30]} Rh6 {[%emt 0:00:07]} 54. Kh3 {[%emt 0:00:03]} Kf7 {[%emt 0:00:05]} 55. Rg1 {[%emt 0:00:28]} Ng6 {[%emt 0:00:03]} 56. Rf3 {[%emt 0:00:05]} Kf6 {[%emt 0:00:04]} 57. Rf2 {[%emt 0:00:46]} Rg7 {[%emt 0:00:17]} 58. Kh2 {[%emt 0:00:11]} 1/2-1/2

[Event "European Women Rapid-ch 2023"]
[Site "Monaco"]
[Date "2024.01.13"]
[Round "5.26"]
[White "Piddubna, Bozhena"]
[Black "Gaprindashvili, Nona"]
[Result "1-0"]
[ECO "A44"]
[WhiteElo "2035"]
[BlackElo "2243"]
[Annotator "TA"]
[PlyCount "77"]
[EventDate "2023.12.19"]
[EventType "swiss"]
[EventCountry "MNC"]
[SourceTitle "playchess.com"]
[Source "ChessBase"]
[SourceQuality "1"]
[TimeControl "900+10"]

{[%evp 9,77,81,118,115,125,91,117,82,93,29,60,18,85,83,75,81,69,82,88,88,84,93,100,66,97,103,84,82,92,105,83,79,88,82,196,164,231,231,311,312,325,295,324,303,422,412,415,368,450,432,552,549,552,552,695,698,745,742,737,715,758,746,29986,29987,29987,1131,6713,819,1067,1050]} 1. d4 {[%emt 0:00:02]} c5 {[%emt 0:00:01]} 2. d5 {[%emt 0:00:13]} e5 {[%emt 0:00:02]} 3. e4 {[%emt 0:01:25]} d6 {[%emt 0:00:01]} 4. Nf3 {[%emt 0:00:01]} g6 {[%emt 0:00:08]} 5. Be2 {[%emt 0:00:16]} Nh6 {[%emt 0:00:18]} 6. h4 {[%emt 0:00:28]} f6 {[%emt 0:00:03][%cal Bf7f6,Bf6f5][%mdl 32]} 7. Bd2 {[%emt 0:03:19]} Bg7 {[%emt 0:00:20]} 8. Qc1 {[%emt 0:00:48] White is more active. White is better.} Nf7 {[%emt 0:00:02]} 9. Rg1 {[%emt 0:00:01]} (9. h5 $16) 9... f5 {[%emt 0:02:12]} 10. Nc3 {[%emt 0:01:18]} O-O {[%emt 0:03:47] [#]} (10... h6 $11) 11. h5 $1 $16 {[%emt 0:00:09]} f4 {[%emt 0:00:36]} 12. hxg6 {[%emt 0:00:26]} hxg6 {[%emt 0:00:02]} 13. g3 {[%emt 0:00:35]} g5 {[%emt 0:03:14]} 14. gxf4 {[%emt 0:00:02]} exf4 {[%emt 0:00:31] [#]} 15. Nxg5 $1 {[%emt 0:03:49]} Nxg5 {[%emt 0:00:14]} 16. Bxf4 {[%emt 0:00:01]} Rxf4 {[%emt 0:00:35]} 17. Qxf4 {[%emt 0:00:24]} Nh3 {[%emt 0:00:01][%csl LRf4,LRg1] [#]} 18. Rxg7+ $1 {[%emt 0:01:19]} Kxg7 {[%emt 0:00:03]} 19. Qg3+ {[%emt 0:00:02]} Qg5 {[%emt 0:02:40]} 20. Qxg5+ {[%emt 0:01:36]} Nxg5 {[%emt 0:00:03] [#]} 21. Nb5 $1 $36 {[%emt 0:00:01][%mdl 2048] White is in control.} (21. f4 $6 Nh3 $11) 21... Na6 {[%emt 0:01:09] Wards off Nc7} (21... Nxe4 $2 {too greedy.} 22. Nc7 $18) (21... Nd7 $16 {is a better defense.}) 22. Nxd6 $18 {[%emt 0:00:35]} Nc7 {[%emt 0:02:35]} (22... Nf7 $142) 23. O-O-O {[%emt 0:00:10]} (23. f4 Nxe4 24. Nxe4 Nxd5 $16) 23... Nf7 {[%emt 0:00:06]} 24. Nxf7 {[%emt 0:00:18]} Kxf7 {[%emt 0:00:01]} 25. d6 {[%emt 0:00:01]} Ne6 {[%emt 0:00:14]} 26. d7 {[%emt 0:00:02]} Bxd7 {[%emt 0:00:06]} 27. Rxd7+ {[%emt 0:00:01][%mdl 4096] Endgame. KRB-KRN} Kf6 {[%emt 0:00:01]} 28. Rxb7 {[%emt 0:00:27]} Rh8 {[%emt 0:00:01]} 29. b3 {[%emt 0:00:02]} Rh2 {[%emt 0:00:03]} 30. Rxa7 {[%emt 0:00:23]} Rxf2 {[%emt 0:00:02]} 31. Bc4 {[%emt 0:00:16] Threatens to win with Ra6.} Nf4 {[%emt 0:00:04]} 32. Rc7 {[%emt 0:00:14]} Ke5 {[%emt 0:00:04]} 33. Rxc5+ {[%emt 0:00:03]} Kd4 {[%emt 0:00:01]} 34. Rc8 {[%emt 0:00:21]} Kc3 {[%emt 0:00:08]} 35. Ba6+ {[%emt 0:00:18]} Kb4 {[%emt 0:00:02]} 36. Kb2 {[%emt 0:00:02]} Ne6 {[%emt 0:00:14]} 37. a3+ {[%emt 0:00:08]} (37. Rc6 $142 Rxc2+ 38. Rxc2 Ka5 39. e5 Kb6 40. Bc8 Ng7 41. Bh3 Ne8 42. e6) 37... Ka5 {[%emt 0:00:01]} 38. b4+ {[%emt 0:00:06]} Kxa6 {[%emt 0:00:02]} 39. Rc6+ {[%emt 0:00:02] Weighted Error Value: White=0.08 (flawless) /Black=0.76.  Mistake:       	White=1     	Black=3      Inaccurate:     	White=1     	Black=4      OK:         	White=11    	Black=6      Best:        	White=3     	Black=2      Strong:       	White=1     	---        Brilliant:      	White=1     	---} 1-0

[Event "European Women Rapid-ch 2023"]
[Site "Monaco"]
[Date "2024.01.13"]
[Round "5.27"]
[White "Calzetta Ruiz, Monica"]
[Black "Follana Albelda, Lucia"]
[Result "1-0"]
[ECO "B91"]
[WhiteElo "2241"]
[BlackElo "1885"]
[Annotator "ChessBase"]
[PlyCount "64"]
[EventDate "2023.12.19"]
[EventType "swiss"]
[EventCountry "MNC"]
[SourceTitle "playchess.com"]
[Source "ChessBase"]
[SourceQuality "1"]
[TimeControl "900+10"]

1. e4 {[%emt 0:00:10]} c5 {[%emt 0:00:01]} 2. Nf3 {[%emt 0:00:00]} d6 {[%emt 0:00:01]} 3. d4 {[%emt 0:00:00]} cxd4 {[%emt 0:00:01]} 4. Nxd4 {[%emt 0:00:00]} Nf6 {[%emt 0:00:01]} 5. Nc3 {[%emt 0:00:01]} a6 {[%emt 0:00:00]} 6. g3 {[%emt 0:00:02]} e5 {[%emt 0:00:04]} 7. Nde2 {[%emt 0:00:01]} Be7 {[%emt 0:00:10]} 8. Bg2 {[%emt 0:00:02]} O-O {[%emt 0:00:06]} 9. O-O {[%emt 0:00:03]} Qc7 {[%emt 0:01:09]} 10. h3 {[%emt 0:00:07]} b5 {[%emt 0:00:07]} 11. g4 {[%emt 0:00:07]} b4 {[%emt 0:01:08]} 12. Nd5 {[%emt 0:00:04]} Nxd5 {[%emt 0:00:03]} 13. Qxd5 {[%emt 0:02:15]} Bb7 {[%emt 0:00:09]} 14. Qd3 {[%emt 0:00:02]} a5 {[%emt 0:00:54]} 15. c4 {[%emt 0:00:35]} Nd7 {[%emt 0:02:01]} 16. Ng3 {[%emt 0:00:41]} Nc5 {[%emt 0:00:15]} 17. Qe2 {[%emt 0:00:02]} Rfc8 {[%emt 0:00:39]} 18. Be3 {[%emt 0:00:35]} Ne6 {[%emt 0:00:08]} 19. Rac1 {[%emt 0:00:32]} Bg5 {[%emt 0:00:47]} 20. Bxg5 {[%emt 0:06:07]} Nxg5 {[%emt 0:00:01]} 21. Rfd1 {[%emt 0:00:02]} Ne6 {[%emt 0:01:24]} 22. Qe3 {[%emt 0:01:12]} g6 {[%emt 0:01:15]} 23. Bf1 {[%emt 0:00:41]} Kg7 {[%emt 0:03:04]} 24. Kh2 {[%emt 0:00:09]} Qe7 {[%emt 0:00:10]} 25. Rd2 {[%emt 0:00:44]} Qf6 {[%emt 0:02:03]} 26. Rxd6 {[%emt 0:00:09]} Rh8 {[%emt 0:00:52]} 27. c5 {[%emt 0:00:27]} Qe7 {[%emt 0:00:19]} 28. Rcd1 {[%emt 0:00:14]} Qe8 {[%emt 0:01:19]} 29. Bc4 {[%emt 0:00:17]} Bc8 {[%emt 0:00:52]} 30. c6 {[%emt 0:00:55]} Nf4 {[%emt 0:00:21]} 31. Qc5 {[%emt 0:00:37]} h5 {[%emt 0:00:22]} 32. Rd8 {[%emt 0:00:20]} Qxd8 {[%emt 0:00:44]} 1-0